[Event "Late-Titled-Tuesday-Blitz-June-25-2024"]
[Site "Chess.com"]
[Date "2024.06.25"]
[Round "7"]
[White "HajiyevKanan"]
[Black "Quattroporte300"]
[Result "1-0"]
[WhiteElo "2606"]
[BlackElo "2433"]
[TimeControl "180+1"]
[EndTime "15:17:01 PDT"]
[Termination "HajiyevKanan won on time"]

1. d4 {[%clk 0:03:00.9]} 1... d5 {[%clk 0:02:58.7]} 2. Nf3 {[%clk 0:03:01.8]}
2... g6 {[%clk 0:02:57.8]} 3. c4 {[%clk 0:03:02.7]} 3... dxc4 {[%clk 0:02:57.1]}
4. e4 {[%clk 0:03:00.5]} 4... Bg7 {[%clk 0:02:56.7]} 5. Bxc4 {[%clk 0:03:00]}
5... e6 {[%clk 0:02:56.9]} 6. Nc3 {[%clk 0:02:59.7]} 6... Ne7 {[%clk 0:02:57.4]}
7. Bg5 {[%clk 0:02:59.4]} 7... h6 {[%clk 0:02:56.1]} 8. Be3 {[%clk 0:02:58.5]}
8... O-O {[%clk 0:02:55.9]} 9. h4 {[%clk 0:02:58.7]} 9... h5 {[%clk 0:02:51.9]}
10. Qd2 {[%clk 0:02:55.8]} 10... a6 {[%clk 0:02:44.2]} 11. Bh6 {[%clk
0:02:55.4]} 11... b5 {[%clk 0:02:42.6]} 12. Bb3 {[%clk 0:02:54.6]} 12... Bb7
{[%clk 0:02:42.8]} 13. Bxg7 {[%clk 0:02:52.4]} 13... Kxg7 {[%clk 0:02:42.6]} 14.
Qf4 {[%clk 0:02:50.8]} 14... b4 {[%clk 0:02:34.7]} 15. Ne2 {[%clk 0:02:44.3]}
15... Nd7 {[%clk 0:02:27.7]} 16. Rc1 {[%clk 0:02:43.7]} 16... Rc8 {[%clk
0:02:24.6]} 17. Ng5 {[%clk 0:02:17.6]} 17... c5 {[%clk 0:02:07.4]} 18. Bxe6
{[%clk 0:01:58.5]} 18... fxe6 {[%clk 0:01:33.8]} 19. Nxe6+ {[%clk 0:01:59.4]}
19... Kh7 {[%clk 0:01:32.1]} 20. Nxd8 {[%clk 0:01:57.7]} 20... Rxf4 {[%clk
0:01:31.8]} 21. Nxb7 {[%clk 0:01:50.8]} 21... Rxe4 {[%clk 0:01:30.5]} 22. Nd6
{[%clk 0:01:50.4]} 22... Re6 {[%clk 0:01:14.2]} 23. Nxc8 {[%clk 0:01:49.9]}
23... Nxc8 {[%clk 0:01:14.8]} 24. dxc5 {[%clk 0:01:49.9]} 24... Ne7 {[%clk
0:01:07.4]} 25. Rh3 {[%clk 0:01:49.7]} 25... Ne5 {[%clk 0:00:52.5]} 26. Re3
{[%clk 0:01:45.2]} 26... Nd5 {[%clk 0:00:50.5]} 27. Rxe5 {[%clk 0:01:16.1]}
27... Rxe5 {[%clk 0:00:49.9]} 28. c6 {[%clk 0:01:17]} 28... Re7 {[%clk
0:00:31.3]} 29. Kd2 {[%clk 0:01:08.1]} 29... a5 {[%clk 0:00:27.3]} 30. g3 {[%clk
0:01:03]} 30... Kg7 {[%clk 0:00:19.1]} 31. Nf4 {[%clk 0:01:02.9]} 31... Nc7
{[%clk 0:00:14.3]} 32. Rc5 {[%clk 0:01:02.4]} 32... a4 {[%clk 0:00:11.3]} 33.
Rg5 {[%clk 0:01:01.5]} 33... Kf6 {[%clk 0:00:05.1]} 34. Rxg6+ {[%clk 0:00:58.3]}
34... Ke5 {[%clk 0:00:05.3]} 35. Nxh5 {[%clk 0:00:52.8]} 35... Kd5 {[%clk
0:00:04.6]} 36. Nf4+ {[%clk 0:00:49.6]} 36... Kc4 {[%clk 0:00:05]} 37. h5 {[%clk
0:00:40.5]} 37... b3 {[%clk 0:00:05.1]} 38. a3 {[%clk 0:00:37.8]} 38... Re8
{[%clk 0:00:04.9]} 39. Rd6 {[%clk 0:00:37]} 39... Nb5 {[%clk 0:00:04]} 40. Rd7
{[%clk 0:00:31.9]} 40... Kc5 {[%clk 0:00:03.8]} 41. c7 {[%clk 0:00:28.2]} 41...
Kc6 {[%clk 0:00:04.2]} 42. Rd8 {[%clk 0:00:21.1]} 42... Nxc7 {[%clk 0:00:04.9]}
43. Rxe8 {[%clk 0:00:21.3]} 43... Nxe8 {[%clk 0:00:05.8]} 44. h6 {[%clk
0:00:19.9]} 44... Nf6 {[%clk 0:00:06.3]} 45. g4 {[%clk 0:00:18.1]} 45... Nh7
{[%clk 0:00:06.8]} 46. Nd3 {[%clk 0:00:13.3]} 46... Kd5 {[%clk 0:00:06.8]} 47.
f4 {[%clk 0:00:14]} 47... Ke4 {[%clk 0:00:05.8]} 48. g5 {[%clk 0:00:14.6]} 48...
Nf8 {[%clk 0:00:03.7]} 49. Kc3 {[%clk 0:00:12.9]} 49... Ke3 {[%clk 0:00:03]} 50.
f5 {[%clk 0:00:12.4]} 50... Ke4 {[%clk 0:00:02.3]} 51. g6 {[%clk 0:00:13.1]} 1-0

[Event "Late-Titled-Tuesday-Blitz-June-25-2024"]
[Site "Chess.com"]
[Date "2024.06.25"]
[Round "7"]
[White "Brown_Mamba24"]
[Black "EternalNight8"]
[Result "1-0"]
[WhiteElo "2557"]
[BlackElo "2384"]
[TimeControl "180+1"]
[EndTime "15:17:01 PDT"]
[Termination "Brown_Mamba24 won by resignation"]

1. d4 {[%clk 0:03:00.9]} 1... Nf6 {[%clk 0:02:59.6]} 2. c4 {[%clk 0:02:51]} 2...
e6 {[%clk 0:03:00]} 3. Nf3 {[%clk 0:02:50.7]} 3... Bb4+ {[%clk 0:03:00.1]} 4.
Nbd2 {[%clk 0:02:49.1]} 4... a5 {[%clk 0:02:59.8]} 5. a3 {[%clk 0:02:49.1]} 5...
Be7 {[%clk 0:02:59.7]} 6. e4 {[%clk 0:02:48.5]} 6... d5 {[%clk 0:02:59.3]} 7. e5
{[%clk 0:02:48.3]} 7... Nfd7 {[%clk 0:02:57.5]} 8. Bd3 {[%clk 0:02:48.1]} 8...
c5 {[%clk 0:02:56.5]} 9. Qc2 {[%clk 0:02:43.1]} 9... Nc6 {[%clk 0:02:51.4]} 10.
cxd5 {[%clk 0:02:42.1]} 10... exd5 {[%clk 0:02:51.9]} 11. Bxh7 {[%clk 0:02:40]}
11... cxd4 {[%clk 0:02:43.7]} 12. e6 {[%clk 0:02:37.9]} 12... Nde5 {[%clk
0:02:29.2]} 13. exf7+ {[%clk 0:02:31.8]} 13... Nxf7 {[%clk 0:02:29]} 14. O-O
{[%clk 0:02:22.1]} 14... Be6 {[%clk 0:02:15.4]} 15. Re1 {[%clk 0:02:21.6]} 15...
Qd7 {[%clk 0:02:13.2]} 16. Nb3 {[%clk 0:02:18.6]} 16... Bg4 {[%clk 0:01:28.1]}
17. Nbxd4 {[%clk 0:02:04.3]} 17... O-O-O {[%clk 0:01:16.7]} 18. h3 {[%clk
0:01:59.9]} 18... Rxh7 {[%clk 0:01:10.8]} 19. Qxh7 {[%clk 0:01:59.1]} 19... Bxf3
{[%clk 0:01:07.7]} 20. Nxf3 {[%clk 0:01:57.4]} 20... Bf6 {[%clk 0:01:07.6]} 21.
Bf4 {[%clk 0:01:52.3]} 21... Nd6 {[%clk 0:01:01.1]} 22. Rac1 {[%clk 0:01:42.9]}
22... Bxb2 {[%clk 0:00:53.7]} 23. Ne5 {[%clk 0:01:40.4]} 23... Bxe5 {[%clk
0:00:48.4]} 24. Bxe5 {[%clk 0:01:35.5]} 24... Nc4 {[%clk 0:00:39.9]} 25. Bxg7
{[%clk 0:01:19.2]} 25... Nxa3 {[%clk 0:00:38.6]} 26. Qh6 {[%clk 0:01:08.2]}
26... Nc4 {[%clk 0:00:32.8]} 27. Bc3 {[%clk 0:01:03.5]} 27... a4 {[%clk
0:00:27.9]} 28. Ba1 {[%clk 0:00:55.4]} 28... a3 {[%clk 0:00:26.5]} 29. Red1
{[%clk 0:00:50.2]} 29... Qf5 {[%clk 0:00:21.9]} 30. Qh4 {[%clk 0:00:45]} 30...
Rf8 {[%clk 0:00:20.6]} 31. Qg4 {[%clk 0:00:41.7]} 31... Qxg4 {[%clk 0:00:20.4]}
32. hxg4 {[%clk 0:00:42.6]} 32... Rd8 {[%clk 0:00:15.2]} 33. g5 {[%clk
0:00:42.4]} 33... a2 {[%clk 0:00:13.5]} 34. g6 {[%clk 0:00:42.3]} 34... Ne7
{[%clk 0:00:12.4]} 35. g7 {[%clk 0:00:41.7]} 35... Rg8 {[%clk 0:00:12.1]} 36. f4
{[%clk 0:00:28.3]} 36... b5 {[%clk 0:00:11.9]} 37. g4 {[%clk 0:00:28.2]} 37...
b4 {[%clk 0:00:10.5]} 38. Rd3 {[%clk 0:00:25.7]} 38... Kd7 {[%clk 0:00:08.5]}
39. f5 {[%clk 0:00:26.1]} 39... Ke8 {[%clk 0:00:06]} 40. f6 {[%clk 0:00:25.9]}
40... Ng6 {[%clk 0:00:06]} 41. Rxd5 {[%clk 0:00:25.1]} 41... Nf4 {[%clk
0:00:05.2]} 42. Re1+ {[%clk 0:00:16.1]} 42... Kf7 {[%clk 0:00:04.8]} 43. Rd7+
{[%clk 0:00:15.5]} 43... Kg6 {[%clk 0:00:05]} 44. f7 {[%clk 0:00:15.5]} 44...
Rxg7 {[%clk 0:00:03.7]} 45. Bxg7 {[%clk 0:00:14.4]} 45... Kxg7 {[%clk
0:00:04.6]} 46. Rf1 {[%clk 0:00:07.4]} 46... Ne2+ {[%clk 0:00:02.9]} 47. Kh2
{[%clk 0:00:07.1]} 47... Ne3 {[%clk 0:00:01.3]} 48. f8=Q+ {[%clk 0:00:06.8]}
48... Kg6 {[%clk 0:00:01.6]} 49. Rg7+ {[%clk 0:00:04.6]} 1-0

[Event "Late-Titled-Tuesday-Blitz-June-25-2024"]
[Site "Chess.com"]
[Date "2024.06.25"]
[Round "7"]
[White "JEHUBNER"]
[Black "tolimachess"]
[Result "1-0"]
[WhiteElo "1997"]
[BlackElo "2288"]
[TimeControl "180+1"]
[EndTime "15:17:02 PDT"]
[Termination "JEHUBNER won on time"]

1. e4 {[%clk 0:03:00.9]} 1... c5 {[%clk 0:02:56.9]} 2. c3 {[%clk 0:03:00.6]}
2... e6 {[%clk 0:02:55.2]} 3. d4 {[%clk 0:03:00.7]} 3... d5 {[%clk 0:02:55.5]}
4. exd5 {[%clk 0:03:00.1]} 4... Qxd5 {[%clk 0:02:56]} 5. Nf3 {[%clk 0:03:01]}
5... Nf6 {[%clk 0:02:55.4]} 6. Be2 {[%clk 0:02:55.5]} 6... Nc6 {[%clk 0:02:50]}
7. Be3 {[%clk 0:02:54.4]} 7... cxd4 {[%clk 0:02:49.4]} 8. cxd4 {[%clk
0:02:53.4]} 8... Be7 {[%clk 0:02:43.4]} 9. Nc3 {[%clk 0:02:53.8]} 9... Qd8
{[%clk 0:02:42.1]} 10. O-O {[%clk 0:02:54.2]} 10... O-O {[%clk 0:02:42]} 11. Ne5
{[%clk 0:02:47.3]} 11... Nb4 {[%clk 0:02:34.3]} 12. a3 {[%clk 0:02:44]} 12...
Nbd5 {[%clk 0:02:33.4]} 13. Bf3 {[%clk 0:02:40.8]} 13... h6 {[%clk 0:02:17.2]}
14. Rc1 {[%clk 0:02:30.9]} 14... a6 {[%clk 0:02:04.2]} 15. Ne4 {[%clk
0:02:21.2]} 15... Nxe3 {[%clk 0:02:00.4]} 16. fxe3 {[%clk 0:02:21.1]} 16... Nd5
{[%clk 0:02:01]} 17. Qd2 {[%clk 0:02:12.8]} 17... Bd6 {[%clk 0:01:58.8]} 18. Nc4
{[%clk 0:02:07.2]} 18... Bb8 {[%clk 0:01:52.3]} 19. Nc3 {[%clk 0:02:00]} 19...
Qh4 {[%clk 0:01:47.1]} 20. g3 {[%clk 0:01:55.5]} 20... Qg5 {[%clk 0:01:43.3]}
21. Nxd5 {[%clk 0:01:48.2]} 21... exd5 {[%clk 0:01:43.9]} 22. Nb6 {[%clk
0:01:48.8]} 22... Bh3 {[%clk 0:01:39.4]} 23. Nxa8 {[%clk 0:01:42.4]} 23... Bxg3
{[%clk 0:01:36.6]} 24. hxg3 {[%clk 0:01:27.8]} 24... Qxg3+ {[%clk 0:01:35.5]}
25. Bg2 {[%clk 0:01:24.4]} 25... Rxa8 {[%clk 0:01:34.3]} 26. Rf3 {[%clk
0:01:22.7]} 26... Qg5 {[%clk 0:01:26.4]} 27. Rxh3 {[%clk 0:01:18.5]} 27... Re8
{[%clk 0:01:27.1]} 28. Rf1 {[%clk 0:01:16.4]} 28... Re6 {[%clk 0:01:24.6]} 29.
Qf2 {[%clk 0:01:10.9]} 29... Rf6 {[%clk 0:01:23.5]} 30. Rf3 {[%clk 0:01:11.4]}
30... Rg6 {[%clk 0:01:22.8]} 31. Rxf7 {[%clk 0:01:07.5]} 31... Kh7 {[%clk
0:01:18.6]} 32. Qf3 {[%clk 0:00:53.7]} 32... b5 {[%clk 0:01:15.6]} 33. Rf2
{[%clk 0:00:52.8]} 33... a5 {[%clk 0:01:10.6]} 34. Qf5 {[%clk 0:00:48]} 34...
Qxe3 {[%clk 0:01:09.8]} 35. Rf8 {[%clk 0:00:20.2]} 35... Qe1+ {[%clk 0:00:14]}
36. Kh2 {[%clk 0:00:19]} 36... b4 {[%clk 0:00:10.5]} 37. Qf3 {[%clk 0:00:06.3]}
37... bxa3 {[%clk 0:00:08.5]} 38. Qe2 {[%clk 0:00:06.8]} 38... Qb4 {[%clk
0:00:04.3]} 39. bxa3 {[%clk 0:00:06.9]} 39... Qxa3 {[%clk 0:00:04.3]} 40. Qf3
{[%clk 0:00:07.5]} 40... Qe7 {[%clk 0:00:03.8]} 41. Qf5 {[%clk 0:00:07.8]} 41...
Qh4+ {[%clk 0:00:03.8]} 42. Kg1 {[%clk 0:00:08.4]} 42... Qxd4 {[%clk 0:00:03.7]}
43. Rh8+ {[%clk 0:00:08.6]} 43... Kxh8 {[%clk 0:00:03.3]} 44. Qxg6 {[%clk
0:00:09.5]} 44... Qd1+ {[%clk 0:00:03.7]} 45. Kh2 {[%clk 0:00:09.6]} 1-0

[Event "Late-Titled-Tuesday-Blitz-June-25-2024"]
[Site "Chess.com"]
[Date "2024.06.25"]
[Round "7"]
[White "JuliaEfremova"]
[Black "Boudicca64"]
[Result "1-0"]
[WhiteElo "2300"]
[BlackElo "1933"]
[TimeControl "180+1"]
[EndTime "15:17:04 PDT"]
[Termination "JuliaEfremova won on time"]

1. e4 {[%clk 0:03:00.9]} 1... g6 {[%clk 0:02:43.5]} 2. d4 {[%clk 0:02:51.8]}
2... Bg7 {[%clk 0:02:42.7]} 3. Nf3 {[%clk 0:02:50.4]} 3... c5 {[%clk 0:02:42.2]}
4. c3 {[%clk 0:02:49.1]} 4... cxd4 {[%clk 0:02:40.3]} 5. cxd4 {[%clk 0:02:48.7]}
5... d5 {[%clk 0:02:40]} 6. e5 {[%clk 0:02:46.5]} 6... Nc6 {[%clk 0:02:38.7]} 7.
Be2 {[%clk 0:02:40.5]} 7... Bg4 {[%clk 0:02:31.6]} 8. h3 {[%clk 0:02:31.5]} 8...
Bxf3 {[%clk 0:02:29.8]} 9. Bxf3 {[%clk 0:02:32.4]} 9... Nh6 {[%clk 0:02:29.5]}
10. e6 {[%clk 0:02:28.6]} 10... fxe6 {[%clk 0:02:23.6]} 11. O-O {[%clk
0:02:25.4]} 11... O-O {[%clk 0:02:21.4]} 12. Nc3 {[%clk 0:02:16.3]} 12... Nxd4
{[%clk 0:02:19.3]} 13. Bg4 {[%clk 0:02:08.1]} 13... Nhf5 {[%clk 0:02:13.8]} 14.
Ne2 {[%clk 0:01:42.9]} 14... Qb6 {[%clk 0:02:04.3]} 15. Nxd4 {[%clk 0:01:36.9]}
15... Qxd4 {[%clk 0:01:59.4]} 16. Qb3 {[%clk 0:01:28.8]} 16... b6 {[%clk
0:01:37]} 17. Bg5 {[%clk 0:01:08.5]} 17... Bf6 {[%clk 0:01:23.2]} 18. Rad1
{[%clk 0:01:03.7]} 18... Qxb2 {[%clk 0:01:16]} 19. Qxb2 {[%clk 0:00:50.9]} 19...
Bxb2 {[%clk 0:01:14]} 20. Bxf5 {[%clk 0:00:50]} 20... Rxf5 {[%clk 0:01:05.2]}
21. Bxe7 {[%clk 0:00:49.8]} 21... Kf7 {[%clk 0:00:56.6]} 22. Bh4 {[%clk
0:00:48.6]} 22... Rc8 {[%clk 0:00:53.8]} 23. Rd2 {[%clk 0:00:47.2]} 23... Bc3
{[%clk 0:00:51.3]} 24. Rc2 {[%clk 0:00:47.1]} 24... d4 {[%clk 0:00:51.2]} 25.
Rfc1 {[%clk 0:00:41.3]} 25... Rfc5 {[%clk 0:00:43.9]} 26. Rd1 {[%clk 0:00:41.3]}
26... e5 {[%clk 0:00:42.5]} 27. Re2 {[%clk 0:00:40.6]} 27... Re8 {[%clk
0:00:33.1]} 28. f3 {[%clk 0:00:40]} 28... a5 {[%clk 0:00:28.4]} 29. Bg3 {[%clk
0:00:37.4]} 29... b5 {[%clk 0:00:24.9]} 30. Bf2 {[%clk 0:00:24.5]} 30... b4
{[%clk 0:00:23.7]} 31. Bg3 {[%clk 0:00:20.8]} 31... a4 {[%clk 0:00:22.4]} 32. f4
{[%clk 0:00:21.1]} 32... e4 {[%clk 0:00:20.6]} 33. Be1 {[%clk 0:00:18.4]} 33...
Bxe1 {[%clk 0:00:18.8]} 34. Rdxe1 {[%clk 0:00:19.3]} 34... b3 {[%clk 0:00:18.6]}
35. axb3 {[%clk 0:00:19.2]} 35... axb3 {[%clk 0:00:17.7]} 36. Rb2 {[%clk
0:00:20.1]} 36... Rc3 {[%clk 0:00:16.8]} 37. Reb1 {[%clk 0:00:21]} 37... d3
{[%clk 0:00:16.2]} 38. Kf1 {[%clk 0:00:21.1]} 38... Rc2 {[%clk 0:00:15.1]} 39.
Rxb3 {[%clk 0:00:20.8]} 39... d2 {[%clk 0:00:15.1]} 40. Rd1 {[%clk 0:00:19.2]}
40... Rec8 {[%clk 0:00:13.7]} 41. Ke2 {[%clk 0:00:19.2]} 41... e3 {[%clk
0:00:13.2]} 42. Rxe3 {[%clk 0:00:19.1]} 42... Ra2 {[%clk 0:00:10.9]} 43. Rxd2
{[%clk 0:00:19.2]} 43... Rxd2+ {[%clk 0:00:09.7]} 44. Kxd2 {[%clk 0:00:20.1]}
44... Ra8 {[%clk 0:00:09.5]} 45. Ke2 {[%clk 0:00:20.1]} 45... Kf6 {[%clk
0:00:07.9]} 46. Kf3 {[%clk 0:00:21]} 46... h5 {[%clk 0:00:07.4]} 47. Rb3 {[%clk
0:00:20]} 47... h4 {[%clk 0:00:06.9]} 48. Kg4 {[%clk 0:00:19.4]} 48... Ra4
{[%clk 0:00:05.8]} 49. Rb6+ {[%clk 0:00:16.9]} 49... Kf7 {[%clk 0:00:04.6]} 50.
Kg5 {[%clk 0:00:17]} 50... Re4 {[%clk 0:00:02.7]} 51. Rf6+ {[%clk 0:00:15.2]}
51... Ke7 {[%clk 0:00:01.2]} 52. Rxg6 {[%clk 0:00:14.7]} 1-0

[Event "Late-Titled-Tuesday-Blitz-June-25-2024"]
[Site "Chess.com"]
[Date "2024.06.25"]
[Round "7"]
[White "tarno17"]
[Black "duone"]
[Result "0-1"]
[WhiteElo "2167"]
[BlackElo "2380"]
[TimeControl "180+1"]
[EndTime "15:17:06 PDT"]
[Termination "duone won by resignation"]

1. e4 {[%clk 0:03:00.9]} 1... c6 {[%clk 0:03:00.3]} 2. d4 {[%clk 0:03:00.6]}
2... d5 {[%clk 0:03:00.5]} 3. Nc3 {[%clk 0:03:00.6]} 3... dxe4 {[%clk
0:02:57.4]} 4. Nxe4 {[%clk 0:03:01.5]} 4... Nf6 {[%clk 0:02:56.9]} 5. Ng3 {[%clk
0:02:59.7]} 5... e6 {[%clk 0:02:53.6]} 6. Nf3 {[%clk 0:02:59.4]} 6... Bd6 {[%clk
0:02:53.9]} 7. Bd3 {[%clk 0:02:56]} 7... O-O {[%clk 0:02:50.6]} 8. Be3 {[%clk
0:02:33.6]} 8... Nbd7 {[%clk 0:02:47.7]} 9. c3 {[%clk 0:02:15.2]} 9... b6 {[%clk
0:02:45.3]} 10. Bc2 {[%clk 0:02:12.1]} 10... Bb7 {[%clk 0:02:45.3]} 11. Qd3
{[%clk 0:01:54.4]} 11... Qc8 {[%clk 0:02:21.7]} 12. Bg5 {[%clk 0:01:20]} 12...
Ba6 {[%clk 0:02:20.5]} 13. c4 {[%clk 0:01:18.4]} 13... Bb4+ {[%clk 0:02:06.5]}
14. Nd2 {[%clk 0:01:12.4]} 14... g6 {[%clk 0:01:23.9]} 15. O-O {[%clk
0:01:01.4]} 15... c5 {[%clk 0:01:22.3]} 16. Nde4 {[%clk 0:00:23.2]} 16... Nxe4
{[%clk 0:01:16.3]} 17. Nxe4 {[%clk 0:00:22.3]} 17... f5 {[%clk 0:01:07]} 18. Nd6
{[%clk 0:00:16.3]} 18... Qc6 {[%clk 0:01:03.6]} 19. dxc5 {[%clk 0:00:12.6]}
19... Bxc5 {[%clk 0:00:52.5]} 20. Nb5 {[%clk 0:00:09.4]} 20... Ne5 {[%clk
0:00:41.6]} 21. Qe2 {[%clk 0:00:09]} 21... Nxc4 {[%clk 0:00:38.8]} 22. Bd3
{[%clk 0:00:02.5]} 22... Bxb5 {[%clk 0:00:36.9]} 23. a4 {[%clk 0:00:02.5]} 23...
Ba6 {[%clk 0:00:32.4]} 24. b4 {[%clk 0:00:03]} 24... Bd4 {[%clk 0:00:27.3]} 25.
Rac1 {[%clk 0:00:03.3]} 25... Rac8 {[%clk 0:00:21.5]} 26. b5 {[%clk 0:00:03.6]}
26... Qd5 {[%clk 0:00:21.8]} 27. bxa6 {[%clk 0:00:03.7]} 27... Ne5 {[%clk
0:00:21.3]} 28. Rxc8 {[%clk 0:00:03.5]} 28... Rxc8 {[%clk 0:00:21.3]} 29. Bb5
{[%clk 0:00:04.2]} 29... Qe4 {[%clk 0:00:16.9]} 30. Qxe4 {[%clk 0:00:04]} 30...
fxe4 {[%clk 0:00:17.3]} 31. h3 {[%clk 0:00:03.9]} 31... Rc2 {[%clk 0:00:14]} 32.
Be3 {[%clk 0:00:04.1]} 32... Bxe3 {[%clk 0:00:13.9]} 33. fxe3 {[%clk 0:00:05]}
33... Nd3 {[%clk 0:00:13.8]} 34. Rd1 {[%clk 0:00:04]} 34... Ra2 {[%clk
0:00:09.4]} 35. Bxd3 {[%clk 0:00:03.7]} 35... exd3 {[%clk 0:00:09.8]} 36. Rxd3
{[%clk 0:00:04.6]} 36... Rxa4 {[%clk 0:00:10.2]} 37. Rd6 {[%clk 0:00:04.9]}
37... Rxa6 {[%clk 0:00:10.4]} 38. Rxe6 {[%clk 0:00:05.4]} 38... Ra1+ {[%clk
0:00:10.6]} 39. Kf2 {[%clk 0:00:05.6]} 39... b5 {[%clk 0:00:10.5]} 40. Kf3
{[%clk 0:00:06.1]} 40... a5 {[%clk 0:00:11]} 41. Kf4 {[%clk 0:00:06.3]} 41... b4
{[%clk 0:00:10.6]} 42. Kg5 {[%clk 0:00:06.4]} 42... Kf7 {[%clk 0:00:09.6]} 43.
Rb6 {[%clk 0:00:05.8]} 43... Ra3 {[%clk 0:00:08.3]} 44. e4 {[%clk 0:00:05.6]}
44... b3 {[%clk 0:00:08.5]} 45. e5 {[%clk 0:00:04.7]} 45... a4 {[%clk
0:00:08.6]} 46. Rf6+ {[%clk 0:00:02.7]} 46... Ke7 {[%clk 0:00:08.2]} 47. Rb6
{[%clk 0:00:03.1]} 47... Ra2 {[%clk 0:00:08.1]} 48. g4 {[%clk 0:00:03]} 48... b2
{[%clk 0:00:07.7]} 49. h4 {[%clk 0:00:02.2]} 49... a3 {[%clk 0:00:08]} 50. Rb7+
{[%clk 0:00:02.5]} 50... Ke6 {[%clk 0:00:08.1]} 51. Rb5 {[%clk 0:00:01.7]} 51...
Ra1 {[%clk 0:00:08.2]} 52. Rb6+ {[%clk 0:00:01.8]} 52... Kxe5 {[%clk 0:00:08.2]}
53. Rb5+ {[%clk 0:00:02.7]} 53... Kd4 {[%clk 0:00:08.1]} 54. Rb4+ {[%clk
0:00:03.3]} 54... Kc3 {[%clk 0:00:08.5]} 55. Rb7 {[%clk 0:00:03.4]} 55... b1=Q
{[%clk 0:00:08.9]} 56. Rxb1 {[%clk 0:00:04]} 56... Rxb1 {[%clk 0:00:09.2]} 0-1

[Event "Late-Titled-Tuesday-Blitz-June-25-2024"]
[Site "Chess.com"]
[Date "2024.06.25"]
[Round "7"]
[White "Njal28"]
[Black "legendisback1"]
[Result "1/2-1/2"]
[WhiteElo "3116"]
[BlackElo "3039"]
[TimeControl "180+1"]
[EndTime "15:17:08 PDT"]
[Termination "Game drawn by repetition"]

1. e4 {[%clk 0:03:00.9]} 1... e5 {[%clk 0:02:57.1]} 2. Nf3 {[%clk 0:03:01.1]}
2... Nc6 {[%clk 0:02:57.6]} 3. Nc3 {[%clk 0:03:01.4]} 3... Nf6 {[%clk
0:02:57.4]} 4. Bb5 {[%clk 0:03:01.1]} 4... Nd4 {[%clk 0:02:53.3]} 5. Nxd4 {[%clk
0:03:00.6]} 5... exd4 {[%clk 0:02:53.3]} 6. e5 {[%clk 0:03:01.4]} 6... dxc3
{[%clk 0:02:52.2]} 7. exf6 {[%clk 0:03:01.8]} 7... Qxf6 {[%clk 0:02:52.5]} 8.
dxc3 {[%clk 0:03:01.9]} 8... Bd6 {[%clk 0:02:21.4]} 9. O-O {[%clk 0:02:44]} 9...
O-O {[%clk 0:02:20]} 10. Re1 {[%clk 0:02:33.9]} 10... c6 {[%clk 0:02:11]} 11.
Bd3 {[%clk 0:02:26.6]} 11... Bc7 {[%clk 0:02:04.2]} 12. Qh5 {[%clk 0:02:25.2]}
12... h6 {[%clk 0:02:04.4]} 13. Be3 {[%clk 0:02:17.6]} 13... Bb6 {[%clk
0:01:56.4]} 14. a4 {[%clk 0:01:54.8]} 14... d5 {[%clk 0:01:49.4]} 15. a5 {[%clk
0:01:54.1]} 15... Bxe3 {[%clk 0:01:44.4]} 16. Rxe3 {[%clk 0:01:55]} 16... Be6
{[%clk 0:01:37.2]} 17. Rae1 {[%clk 0:01:51.3]} 17... Rfe8 {[%clk 0:01:16.3]} 18.
h3 {[%clk 0:01:34.4]} 18... Bd7 {[%clk 0:01:11.5]} 19. Rxe8+ {[%clk 0:01:26.7]}
19... Rxe8 {[%clk 0:01:11.4]} 20. Rxe8+ {[%clk 0:01:26.8]} 20... Bxe8 {[%clk
0:01:12.3]} 21. Qe2 {[%clk 0:01:26.1]} 21... Qe6 {[%clk 0:00:59.9]} 22. f4
{[%clk 0:01:06]} 22... c5 {[%clk 0:00:34.5]} 23. Kf2 {[%clk 0:00:47.2]} 23...
Qxe2+ {[%clk 0:00:16]} 24. Bxe2 {[%clk 0:00:46.9]} 24... Bc6 {[%clk 0:00:14.2]}
25. Bf3 {[%clk 0:00:46.4]} 25... Kf8 {[%clk 0:00:14.5]} 26. a6 {[%clk
0:00:42.3]} 26... b5 {[%clk 0:00:13.5]} 27. b4 {[%clk 0:00:38.3]} 27... c4
{[%clk 0:00:08.1]} 28. Ke3 {[%clk 0:00:38.8]} 28... Ke7 {[%clk 0:00:09]} 29. Kd4
{[%clk 0:00:38.7]} 29... Kd6 {[%clk 0:00:09.9]} 30. h4 {[%clk 0:00:33.5]} 30...
f6 {[%clk 0:00:09.3]} 31. h5 {[%clk 0:00:33]} 31... Ba8 {[%clk 0:00:08.9]} 32.
Bg4 {[%clk 0:00:30.2]} 32... Bc6 {[%clk 0:00:09]} 33. Bc8 {[%clk 0:00:28.5]}
33... Kc7 {[%clk 0:00:05.8]} 34. Be6 {[%clk 0:00:26.8]} 34... Kd6 {[%clk
0:00:06]} 35. Bf7 {[%clk 0:00:27.3]} 35... Ba8 {[%clk 0:00:04.8]} 36. g3 {[%clk
0:00:21]} 36... Bc6 {[%clk 0:00:04.7]} 37. Bg6 {[%clk 0:00:21.1]} 37... Bd7
{[%clk 0:00:03.7]} 38. Bf7 {[%clk 0:00:21.3]} 38... Bc6 {[%clk 0:00:03.6]} 39.
Bg8 {[%clk 0:00:20.9]} 39... Ba8 {[%clk 0:00:03.4]} 40. Ke3 {[%clk 0:00:19.6]}
40... Bc6 {[%clk 0:00:03.3]} 41. Bf7 {[%clk 0:00:18.7]} 41... Bd7 {[%clk
0:00:02.9]} 42. Bg6 {[%clk 0:00:18.5]} 42... Bc8 {[%clk 0:00:02.8]} 43. Be8
{[%clk 0:00:15]} 43... Bxa6 {[%clk 0:00:02.5]} 44. Kd4 {[%clk 0:00:15.7]} 44...
f5 {[%clk 0:00:01.5]} 45. Bf7 {[%clk 0:00:12.5]} 45... Bb7 {[%clk 0:00:01.4]}
46. Bg6 {[%clk 0:00:12.7]} 46... Bc8 {[%clk 0:00:01.7]} 47. Bf7 {[%clk
0:00:13.1]} 47... Bb7 {[%clk 0:00:01.6]} 48. Be8 {[%clk 0:00:13]} 48... a6
{[%clk 0:00:01.6]} 49. Bf7 {[%clk 0:00:13.8]} 49... Bc6 {[%clk 0:00:01.6]} 50.
Bg8 {[%clk 0:00:14.6]} 50... Bb7 {[%clk 0:00:02.2]} 51. Bf7 {[%clk 0:00:14.7]}
51... Bc6 {[%clk 0:00:02.8]} 52. Bg8 {[%clk 0:00:15.2]} 52... Bb7 {[%clk
0:00:03]} 53. Ke3 {[%clk 0:00:15.9]} 53... Bc6 {[%clk 0:00:03.4]} 54. Bh7 {[%clk
0:00:16.5]} 54... Bd7 {[%clk 0:00:03.7]} 55. Kd4 {[%clk 0:00:17.2]} 55... Bc8
{[%clk 0:00:03.6]} 56. Bg8 {[%clk 0:00:17.3]} 56... Bb7 {[%clk 0:00:04]} 1/2-1/2